[Event "Lichtenrader Herbst 2019"]
[Site "Berlin"]
[Date "2019.10.14"]
[Round "3.2"]
[White "Starostits, Ilmars"]
[Black "Petersen, Marcel"]
[Result "1-0"]
[ECO "C90"]
[WhiteElo "2479"]
[BlackElo "1818"]
[Annotator "ChessBase"]
[PlyCount "141"]
[EventDate "2019.10.12"]
[EventType "swiss"]
[EventCountry "GER"]
[SourceTitle "playchess.com"]
[Source "ChessBase"]
[SourceQuality "1"]
[TimeControl "40/5400+30:1800+30"]

1. e4 {[%emt 0:00:00]} e5 {[%emt 0:00:00]} 2. Nf3 {[%emt 0:00:00]} Nc6 {[%emt 0:00:00]} 3. Bb5 {[%emt 0:00:00]} Nf6 {[%emt 0:00:20]} 4. d3 {[%emt 0:00:00]} d6 {[%emt 0:01:07]} 5. O-O {[%emt 0:00:00]} Be7 {[%emt 0:00:46]} 6. c3 {[%emt 0:00:04]} O-O {[%emt 0:00:47]} 7. Re1 {[%emt 0:00:13]} Bg4 {[%emt 0:01:47]} 8. h3 {[%emt 0:00:06]} Bh5 {[%emt 0:00:59]} 9. Nbd2 {[%emt 0:00:06]} a6 {[%emt 0:04:57]} 10. Ba4 {[%emt 0:00:06]} b5 {[%emt 0:00:40]} 11. Bb3 {[%emt 0:00:23]} Nb8 {[%emt 0:02:16]} 12. Nf1 {[%emt 0:01:53]} c6 {[%emt 0:02:24]} 13. g4 {[%emt 0:00:27]} Bg6 {[%emt 0:00:09]} 14. Ng3 {[%emt 0:00:06]} Nbd7 {[%emt 0:03:21]} 15. h4 {[%emt 0:00:42]} h5 {[%emt 0:01:37]} 16. g5 {[%emt 0:00:14]} Ng4 {[%emt 0:08:49]} 17. Nh2 {[%emt 0:01:20]} Nxh2 {[%emt 0:02:40]} 18. Kxh2 {[%emt 0:00:05]} Nc5 {[%emt 0:01:04]} 19. Nxh5 {[%emt 0:05:56]} Nxb3 {[%emt 0:06:28]} 20. axb3 {[%emt 0:00:05]} f6 {[%emt 0:08:37]} 21. gxf6 {[%emt 0:04:14]} Bxf6 {[%emt 0:00:46]} 22. Rg1 {[%emt 0:00:05]} Bxh5 {[%emt 0:06:20]} 23. Qxh5 {[%emt 0:00:04]} Bxh4 {[%emt 0:03:21]} 24. Rxg7+ {[%emt 0:00:09]} Kxg7 {[%emt 0:00:04]} 25. Bh6+ {[%emt 0:00:05]} Kf6 {[%emt 0:00:08]} 26. Qxh4+ {[%emt 0:00:53]} Ke6 {[%emt 0:00:20]} 27. Qh3+ {[%emt 0:02:15]} Ke7 {[%emt 0:00:47]} 28. Bg5+ {[%emt 0:00:11]} Rf6 {[%emt 0:00:01]} 29. Bxf6+ {[%emt 0:00:10]} Kxf6 {[%emt 0:00:06]} 30. Rxa6 {[%emt 0:00:08]} Qc8 {[%emt 0:03:48]} 31. Qxc8 {[%emt 0:01:40]} Rxc8 {[%emt 0:00:07]} 32. Kg3 {[%emt 0:00:03]} Ke6 {[%emt 0:01:28]} 33. b4 {[%emt 0:00:06]} d5 {[%emt 0:00:50]} 34. Kf3 {[%emt 0:00:36]} Kd6 {[%emt 0:01:00]} 35. b3 {[%emt 0:01:10]} Rh8 {[%emt 0:01:32]} 36. exd5 {[%emt 0:00:35]} Kxd5 {[%emt 0:00:15]} 37. Ke3 {[%emt 0:00:20]} Kd6 {[%emt 0:02:56]} 38. c4 {[%emt 0:00:27]} Kc7 {[%emt 0:00:29]} 39. Ke4 {[%emt 0:00:46]} Rh2 {[%emt 0:00:30]} 40. Kxe5 {[%emt 0:00:51]} Rxf2 {[%emt 0:00:06]} 41. Kd4 {[%emt 0:30:04]} Kb7 {[%emt 0:31:04]} 42. Ra1 {[%emt 0:00:10]} Kb6 {[%emt 0:01:01]} 43. Rh1 {[%emt 0:00:07]} Rf6 {[%emt 0:00:45]} 44. Rh7 {[%emt 0:00:12]} Rd6+ {[%emt 0:00:48]} 45. Kc3 {[%emt 0:00:07]} Rg6 {[%emt 0:00:08]} 46. Rd7 {[%emt 0:00:14]} Ka6 {[%emt 0:02:45]} 47. Kd4 {[%emt 0:00:19]} Rg5 {[%emt 0:00:31]} 48. Rd6 {[%emt 0:00:18]} Kb7 {[%emt 0:00:27]} 49. Rh6 {[%emt 0:00:29]} Kb6 {[%emt 0:00:33]} 50. Ke4 {[%emt 0:00:39]} Rg4+ {[%emt 0:02:59]} 51. Ke5 {[%emt 0:00:08]} Rg3 {[%emt 0:00:14]} 52. Kd4 {[%emt 0:10:34]} Rg5 {[%emt 0:00:54]} 53. Rh3 {[%emt 0:00:54]} Rg1 {[%emt 0:10:44]} 54. Rh5 {[%emt 0:00:20]} Rg4+ {[%emt 0:00:47]} 55. Kc3 {[%emt 0:00:04]} Rg6 {[%emt 0:00:27]} 56. Rc5 {[%emt 0:00:09]} Rg3 {[%emt 0:01:13]} 57. Kd4 {[%emt 0:00:08]} Rg4+ {[%emt 0:00:30]} 58. Kc3 {[%emt 0:00:53]} Rg3 {[%emt 0:00:31]} 59. Re5 {[%emt 0:00:07]} Rg6 {[%emt 0:00:44]} 60. Re3 {[%emt 0:00:20]} Rg5 {[%emt 0:04:36]} 61. d4 {[%emt 0:00:06]} Rh5 {[%emt 0:00:55]} 62. Rd3 {[%emt 0:00:09]} Kc7 {[%emt 0:00:52]} 63. d5 {[%emt 0:00:07]} Kd7 {[%emt 0:06:53]} 64. dxc6+ {[%emt 0:02:04]} Kxc6 {[%emt 0:00:05]} 65. Rg3 {[%emt 0:00:09]} Rh6 {[%emt 0:00:21]} 66. Rg5 {[%emt 0:00:08]} Rh3+ {[%emt 0:00:22]} 67. Kb2 {[%emt 0:00:04]} Rh2+ {[%emt 0:01:21]} 68. Ka3 {[%emt 0:00:06]} bxc4 {[%emt 0:00:27]} 69. bxc4 {[%emt 0:00:04]} Rc2 {[%emt 0:00:27]} 70. b5+ {[%emt 0:00:15]} Kb6 {[%emt 0:00:09]} 71. Rg6+ {[%emt 0:00:04]} 1-0

[Event "Lichtenrader Herbst 2019"]
[Site "Berlin"]
[Date "2019.10.14"]
[Round "3.3"]
[White "Gebigke, Martin"]
[Black "Shishkin, Vadim"]
[Result "0-1"]
[ECO "D85"]
[WhiteElo "2068"]
[BlackElo "2428"]
[Annotator "NA"]
[PlyCount "88"]
[EventDate "2019.10.12"]
[EventType "swiss"]
[EventCountry "GER"]
[SourceTitle "playchess.com"]
[Source "ChessBase"]
[SourceQuality "1"]
[TimeControl "40/5400+30:1800+30"]

1. d4 {[%emt 0:06:08]} Nf6 {[%emt 0:00:00]} 2. c4 {[%emt 0:00:06]} g6 {[%emt 0:00:00]} 3. Nc3 {[%emt 0:00:04]} d5 {[%emt 0:00:00]} 4. cxd5 {[%emt 0:00:21]} Nxd5 {[%emt 0:00:00]} 5. e4 {[%emt 0:00:07]} Nxc3 {[%emt 0:00:00]} 6. bxc3 {[%emt 0:00:04]} Bg7 {[%emt 0:00:00]} 7. Be3 {[%emt 0:00:44]} c5 {[%emt 0:00:26]} 8. Rc1 {[%emt 0:00:21]} Qa5 {[%emt 0:03:10]} 9. Qd2 {[%emt 0:00:33]} O-O {[%emt 0:01:13]} 10. Nf3 {[%emt 0:00:53]} Nd7 {[%emt 0:05:16]} 11. Bd3 {[%emt 0:05:30]} e5 {[%emt 0:00:30]} 12. d5 {[%emt 0:24:02]} Qc7 {[%emt 0:09:41]} 13. g4 {[%emt 0:20:46]} Nf6 {[%emt 0:05:56]} 14. h3 {[%emt 0:00:45]} Ne8 {[%emt 0:00:58]} 15. Nh4 {[%emt 0:01:37]} f6 {[%emt 0:08:48]} 16. O-O {[%emt 0:11:41]} c4 {[%emt 0:17:05]} 17. Bc2 {[%emt 0:02:12]} Nd6 {[%emt 0:00:08]} 18. f3 {[%emt 0:10:40]} Qe7 {[%emt 0:01:17]} 19. Bf2 {[%emt 0:05:36]} Bd7 {[%emt 0:00:16]} 20. Rce1 {[%emt 0:00:43]} b6 {[%emt 0:00:26]} 21. Kh2 {[%emt 0:00:57]} Kh8 {[%emt 0:01:29]} 22. Bg3 {[%emt 0:00:33]} Nf7 {[%emt 0:01:15]} 23. Ng2 {[%emt 0:02:16]} Bh6 {[%emt 0:00:53]} 24. Qe2 {[%emt 0:00:12]} Qa3 {[%emt 0:09:40]} 25. Qxc4 {[%emt 0:00:47]} Rac8 {[%emt 0:00:06]} 26. Qb3 {[%emt 0:00:29]} Rxc3 {[%emt 0:00:07]} 27. Qxa3 {[%emt 0:00:27]} Rxa3 {[%emt 0:00:04]} 28. Bb3 {[%emt 0:00:58]} a5 {[%emt 0:00:20]} 29. Rf2 {[%emt 0:02:38]} a4 {[%emt 0:00:49]} 30. Bc4 {[%emt 0:00:22]} Rc8 {[%emt 0:05:02]} 31. Bf1 {[%emt 0:00:54]} Ng5 {[%emt 0:05:02]} 32. Nh4 {[%emt 0:00:30]} Rcc3 {[%emt 0:00:53]} 33. Bg2 {[%emt 0:00:27]} Bf8 {[%emt 0:01:20]} 34. Rb2 {[%emt 0:01:17]} Bc5 {[%emt 0:00:53]} 35. Ree2 {[%emt 0:00:52]} b5 {[%emt 0:08:20]} 36. Be1 {[%emt 0:00:53]} Rc4 {[%emt 0:04:17]} 37. Rbc2 {[%emt 0:00:22]} Rxc2 {[%emt 0:02:16]} 38. Rxc2 {[%emt 0:00:02]} Bd6 {[%emt 0:00:03]} 39. Rb2 {[%emt 0:01:08]} Rd3 {[%emt 0:06:47]} 40. Kg1 {[%emt 0:00:27]} Rd1 {[%emt 0:02:52]} 41. Kf2 {[%emt 0:01:22]} a3 {[%emt 0:04:25]} 42. Rc2 {[%emt 0:03:08]} Rb1 {[%emt 0:01:22]} 43. Ke2 {[%emt 0:09:29]} b4 {[%emt 0:00:29]} 44. Bf2 {[%emt 0:03:12]} Rb2 {[%emt 0:00:45]} 0-1

[Event "Lichtenrader Herbst 2019"]
[Site "Berlin"]
[Date "2019.10.14"]
[Round "3.4"]
[White "Jacobi, Robin"]
[Black "Barbier, Astrid"]
[Result "1-0"]
[ECO "A04"]
[WhiteElo "2267"]
[BlackElo "1974"]
[Annotator "NA"]
[PlyCount "175"]
[EventDate "2019.10.12"]
[EventType "swiss"]
[EventCountry "GER"]
[SourceTitle "playchess.com"]
[Source "ChessBase"]
[SourceQuality "1"]
[TimeControl "40/5400+30:1800+30"]

1. Nf3 {[%emt 0:00:00]} f5 {[%emt 0:00:00]} 2. d3 {[%emt 0:02:04]} d6 {[%emt 0:01:04]} 3. e4 {[%emt 0:01:35]} e5 {[%emt 0:01:17]} 4. Nc3 {[%emt 0:00:23]} Nf6 {[%emt 0:04:27]} 5. exf5 {[%emt 0:00:31]} Bxf5 {[%emt 0:00:43]} 6. d4 {[%emt 0:00:07]} Nbd7 {[%emt 0:09:21]} 7. Bc4 {[%emt 0:10:45]} c6 {[%emt 0:06:58]} 8. dxe5 {[%emt 0:03:37]} Nxe5 {[%emt 0:02:20]} 9. Nxe5 {[%emt 0:00:34]} dxe5 {[%emt 0:00:20]} 10. Qe2 {[%emt 0:08:28]} Bd6 {[%emt 0:06:44]} 11. Bg5 {[%emt 0:09:11]} Qc7 {[%emt 0:05:38]} 12. O-O-O {[%emt 0:09:39]} O-O-O {[%emt 0:08:03]} 13. h3 {[%emt 0:13:47]} Rhf8 {[%emt 0:03:21]} 14. Rhe1 {[%emt 0:07:05]} Bg6 {[%emt 0:06:27]} 15. Kb1 {[%emt 0:01:34]} Qa5 {[%emt 0:07:47]} 16. f3 {[%emt 0:08:30]} Bc7 {[%emt 0:10:24]} 17. Rxd8+ {[%emt 0:06:14]} Rxd8 {[%emt 0:00:09]} 18. Rd1 {[%emt 0:01:30]} Qc5 {[%emt 0:06:41]} 19. Rxd8+ {[%emt 0:08:18]} Bxd8 {[%emt 0:00:09]} 20. Be3 {[%emt 0:00:21]} Qe7 {[%emt 0:02:39]} 21. Qf2 {[%emt 0:03:23]} b6 {[%emt 0:01:36]} 22. a4 {[%emt 0:00:39]} Bf7 {[%emt 0:04:43]} 23. Qe2 {[%emt 0:01:54]} Nd5 {[%emt 0:02:10]} 24. Bd2 {[%emt 0:00:35]} Bc7 {[%emt 0:03:37]} 25. Qe4 {[%emt 0:00:55]} Nxc3+ {[%emt 0:01:43]} 26. Bxc3 {[%emt 0:00:03]} Bxc4 {[%emt 0:01:05]} 27. Qxc4 {[%emt 0:00:04]} Kb7 {[%emt 0:01:08]} 28. Qe4 {[%emt 0:00:35]} Qg5 {[%emt 0:00:54]} 29. Qe2 {[%emt 0:00:41]} h6 {[%emt 0:00:48]} 30. b3 {[%emt 0:00:41]} Qf5 {[%emt 0:01:43]} 31. Qe3 {[%emt 0:01:01]} Bd6 {[%emt 0:00:32]} 32. a5 {[%emt 0:00:32]} Bc7 {[%emt 0:00:37]} 33. axb6 {[%emt 0:00:36]} axb6 {[%emt 0:00:06]} 34. Kb2 {[%emt 0:00:31]} Bb8 {[%emt 0:01:02]} 35. g4 {[%emt 0:00:29]} Qf6 {[%emt 0:00:12]} 36. Qe4 {[%emt 0:00:22]} Bc7 {[%emt 0:00:32]} 37. Be1 {[%emt 0:00:40]} Qd6 {[%emt 0:00:17]} 38. Bc3 {[%emt 0:00:24]} Qc5 {[%emt 0:00:49]} 39. Qg6 {[%emt 0:00:33]} Qe7 {[%emt 0:00:10]} 40. h4 {[%emt 0:00:27]} Bd8 {[%emt 0:00:53]} 41. Qf5 {[%emt 0:06:41]} Bc7 {[%emt 0:03:31]} 42. h5 {[%emt 0:00:19]} Bd6 {[%emt 0:03:01]} 43. Kb1 {[%emt 0:05:01]} Kc7 {[%emt 0:02:25]} 44. Bb2 {[%emt 0:01:17]} Kb8 {[%emt 0:08:27]} 45. Bc3 {[%emt 0:02:15]} Kc7 {[%emt 0:00:42]} 46. Kc1 {[%emt 0:03:18]} Kd8 {[%emt 0:07:01]} 47. Kd1 {[%emt 0:02:22]} Qh4 {[%emt 0:03:14]} 48. Be1 {[%emt 0:04:35]} Qh1 {[%emt 0:03:03]} 49. Qd3 {[%emt 0:04:34]} Kc7 {[%emt 0:00:33]} 50. Qe4 {[%emt 0:00:54]} Kb7 {[%emt 0:01:24]} 51. Ke2 {[%emt 0:02:49]} b5 {[%emt 0:01:51]} 52. Qe3 {[%emt 0:01:11]} Bc7 {[%emt 0:00:26]} 53. Bf2 {[%emt 0:00:24]} Qb1 {[%emt 0:00:45]} 54. Qd3 {[%emt 0:00:37]} Qb2 {[%emt 0:00:36]} 55. Be1 {[%emt 0:00:50]} Qb1 {[%emt 0:00:39]} 56. Qg6 {[%emt 0:01:00]} Qb2 {[%emt 0:00:19]} 57. Qd3 {[%emt 0:00:09]} Qb1 {[%emt 0:00:05]} 58. Qc3 {[%emt 0:00:35]} Qa2 {[%emt 0:00:57]} 59. Bd2 {[%emt 0:00:40]} Qb1 {[%emt 0:00:19]} 60. Be1 {[%emt 0:00:25]} Qa2 {[%emt 0:00:03]} 61. Bg3 {[%emt 0:00:36]} Qb1 {[%emt 0:00:14]} 62. Bf2 {[%emt 0:00:25]} Qa2 {[%emt 0:00:34]} 63. Qc5 {[%emt 0:00:12]} Qb1 {[%emt 0:00:53]} 64. Be3 {[%emt 0:00:43]} Qa2 {[%emt 0:00:44]} 65. Kd3 {[%emt 0:00:16]} Qa1 {[%emt 0:00:54]} 66. Ke4 {[%emt 0:00:23]} Qd1 {[%emt 0:00:15]} 67. Bf2 {[%emt 0:00:58]} Qe2+ {[%emt 0:00:15]} 68. Be3 {[%emt 0:00:19]} Qd1 {[%emt 0:00:07]} 69. b4 {[%emt 0:00:42]} Qe2 {[%emt 0:00:47]} 70. Qc3 {[%emt 0:00:36]} Qf1 {[%emt 0:00:52]} 71. Qd3 {[%emt 0:00:26]} Qe1 {[%emt 0:00:25]} 72. Qd2 {[%emt 0:00:16]} Qf1 {[%emt 0:00:08]} 73. Qd3 {[%emt 0:00:31]} Qe1 {[%emt 0:00:19]} 74. c3 {[%emt 0:00:45]} Bb6 {[%emt 0:01:06]} 75. Qd7+ {[%emt 0:00:15]} Ka6 {[%emt 0:00:44]} 76. Qd2 {[%emt 0:00:25]} Qb1+ {[%emt 0:00:29]} 77. Kxe5 {[%emt 0:00:15]} Bc7+ {[%emt 0:00:13]} 78. Ke6 {[%emt 0:00:51]} Qb3+ {[%emt 0:00:19]} 79. Kd7 {[%emt 0:00:31]} Kb7 {[%emt 0:00:53]} 80. Ke7 {[%emt 0:00:36]} Qg8 {[%emt 0:00:45]} 81. Qd4 {[%emt 0:00:26]} Kc8 {[%emt 0:00:31]} 82. Qd7+ {[%emt 0:00:19]} Kb7 {[%emt 0:00:08]} 83. Bf4 {[%emt 0:00:31]} Qb8 {[%emt 0:00:06]} 84. Qxc7+ {[%emt 0:00:16]} Qxc7+ {[%emt 0:00:03]} 85. Bxc7 {[%emt 0:00:05]} Kxc7 {[%emt 0:00:03]} 86. Ke6 {[%emt 0:00:32]} c5 {[%emt 0:01:37]} 87. f4 {[%emt 0:00:44]} Kc6 {[%emt 0:00:18]} 88. g5 {[%emt 0:00:19]} 1-0

[Event "Lichtenrader Herbst 2019"]
[Site "Berlin"]
[Date "2019.10.14"]
[Round "3.5"]
[White "Noeldner, Julian"]
[Black "Noetzel, Felix"]
[Result "0-1"]
[ECO "C54"]
[WhiteElo "2051"]
[BlackElo "2233"]
[Annotator "NA"]
[PlyCount "118"]
[EventDate "2019.10.12"]
[EventType "swiss"]
[EventCountry "GER"]
[SourceTitle "playchess.com"]
[Source "ChessBase"]
[SourceQuality "1"]
[TimeControl "40/5400+30:1800+30"]

1. e4 {[%emt 0:00:00]} e5 {[%emt 0:00:00]} 2. Nf3 {[%emt 0:00:00]} Nc6 {[%emt 0:00:00]} 3. Bc4 {[%emt 0:00:19]} Nf6 {[%emt 0:00:07]} 4. d3 {[%emt 0:00:06]} Bc5 {[%emt 0:00:07]} 5. c3 {[%emt 0:00:13]} d6 {[%emt 0:00:15]} 6. O-O {[%emt 0:00:08]} a6 {[%emt 0:00:46]} 7. Re1 {[%emt 0:00:52]} Ba7 {[%emt 0:02:00]} 8. a4 {[%emt 0:00:26]} O-O {[%emt 0:02:12]} 9. h3 {[%emt 0:00:16]} Ne7 {[%emt 0:01:42]} 10. Nbd2 {[%emt 0:00:53]} Ng6 {[%emt 0:00:33]} 11. Nf1 {[%emt 0:01:43]} Nh5 {[%emt 0:16:17]} 12. Nxe5 {[%emt 0:10:46]} Qh4 {[%emt 0:01:35]} 13. Nf3 {[%emt 0:33:57]} Qxf2+ {[%emt 0:08:13]} 14. Kh1 {[%emt 0:01:50]} Nh4 {[%emt 0:12:21]} 15. Qe2 {[%emt 0:04:41]} Bxh3 {[%emt 0:27:35]} 16. Qxf2 {[%emt 0:18:09]} Bxf2 {[%emt 0:00:18]} 17. Nxh4 {[%emt 0:00:46]} Bxh4 {[%emt 0:04:15]} 18. g3 {[%emt 0:00:19]} Be7 {[%emt 0:04:43]} 19. Kh2 {[%emt 0:01:20]} Be6 {[%emt 0:01:00]} 20. Ne3 {[%emt 0:00:06]} Nf6 {[%emt 0:02:58]} 21. Nf5 {[%emt 0:03:20]} Bxf5 {[%emt 0:03:07]} 22. exf5 {[%emt 0:00:04]} Rfe8 {[%emt 0:00:11]} 23. Kh3 {[%emt 0:01:40]} d5 {[%emt 0:02:11]} 24. Bb3 {[%emt 0:00:35]} h6 {[%emt 0:02:16]} 25. g4 {[%emt 0:01:08]} Bd6 {[%emt 0:03:10]} 26. Bd2 {[%emt 0:02:58]} c6 {[%emt 0:00:38]} 27. Rxe8+ {[%emt 0:04:27]} Rxe8 {[%emt 0:00:03]} 28. Re1 {[%emt 0:00:05]} Rxe1 {[%emt 0:01:30]} 29. Bxe1 {[%emt 0:00:04]} Bf4 {[%emt 0:00:35]} 30. Bc2 {[%emt 0:01:35]} Bc1 {[%emt 0:02:13]} 31. b3 {[%emt 0:00:14]} h5 {[%emt 0:01:24]} 32. gxh5 {[%emt 0:00:43]} Nxh5 {[%emt 0:00:02]} 33. Bg3 {[%emt 0:00:14]} g6 {[%emt 0:01:18]} 34. fxg6 {[%emt 0:00:39]} fxg6 {[%emt 0:00:02]} 35. Be5 {[%emt 0:07:14]} Bf4 {[%emt 0:00:58]} 36. d4 {[%emt 0:00:06]} Bxe5 {[%emt 0:00:31]} 37. dxe5 {[%emt 0:00:02]} Kf7 {[%emt 0:00:15]} 38. Kg4 {[%emt 0:01:18]} Ng7 {[%emt 0:00:57]} 39. b4 {[%emt 0:00:23]} Ne6 {[%emt 0:00:33]} 40. Bd3 {[%emt 0:00:15]} c5 {[%emt 0:00:33]} 41. bxc5 {[%emt 0:30:26]} Nxc5 {[%emt 0:00:40]} 42. Bc2 {[%emt 0:00:00]} Ke6 {[%emt 0:08:27]} 43. Kf4 {[%emt 0:00:00]} g5+ {[%emt 0:00:15]} 44. Kxg5 {[%emt 0:00:00]} Kxe5 {[%emt 0:00:07]} 45. Kg6 {[%emt 0:00:00]} Ne4 {[%emt 0:01:23]} 46. Kf7 {[%emt 0:00:00]} Nxc3 {[%emt 0:01:20]} 47. Ke7 {[%emt 0:00:00]} Kd4 {[%emt 0:02:24]} 48. Kd6 {[%emt 0:00:00]} Kc4 {[%emt 0:01:32]} 49. Kc7 {[%emt 0:00:00]} b5 {[%emt 0:02:57]} 50. a5 {[%emt 0:00:00]} Ne4 {[%emt 0:06:42]} 51. Kb6 {[%emt 0:00:00]} Nc5 {[%emt 0:00:11]} 52. Bd1 {[%emt 0:00:00]} d4 {[%emt 0:00:10]} 53. Bh5 {[%emt 0:00:00]} d3 {[%emt 0:00:20]} 54. Bf7+ {[%emt 0:00:00]} Kd4 {[%emt 0:00:09]} 55. Bh5 {[%emt 0:00:00]} b4 {[%emt 0:00:10]} 56. Bd1 {[%emt 0:00:00]} b3 {[%emt 0:00:04]} 57. Bxb3 {[%emt 0:00:00]} Nxb3 {[%emt 0:00:05]} 58. Kxa6 {[%emt 0:00:00]} Nxa5 {[%emt 0:00:07]} 59. Kxa5 {[%emt 0:00:00]} d2 {[%emt 0:00:04]} 0-1

[Event "Lichtenrader Herbst 2019"]
[Site "Berlin"]
[Date "2019.10.14"]
[Round "3.6"]
[White "Polatel, Ali"]
[Black "Guenther, Thomas"]
[Result "1-0"]
[ECO "E14"]
[WhiteElo "2235"]
[BlackElo "1966"]
[Annotator "NA"]
[PlyCount "70"]
[EventDate "2019.10.12"]
[EventType "swiss"]
[EventCountry "GER"]
[SourceTitle "playchess.com"]
[Source "ChessBase"]
[SourceQuality "1"]
[TimeControl "40/5400+30:1800+30"]

1. d4 {[%emt 0:00:00]} Nf6 {[%emt 0:00:00]} 2. Nf3 {[%emt 0:00:00]} e6 {[%emt 0:00:00]} 3. e3 {[%emt 0:00:00]} b6 {[%emt 0:00:24]} 4. Bd3 {[%emt 0:00:17]} Bb7 {[%emt 0:00:12]} 5. O-O {[%emt 0:00:16]} Be7 {[%emt 0:00:15]} 6. c4 {[%emt 0:00:14]} O-O {[%emt 0:00:24]} 7. Nc3 {[%emt 0:00:51]} d5 {[%emt 0:01:27]} 8. b3 {[%emt 0:00:33]} Nbd7 {[%emt 0:00:37]} 9. Bb2 {[%emt 0:00:47]} c5 {[%emt 0:03:01]} 10. cxd5 {[%emt 0:02:26]} exd5 {[%emt 0:03:00]} 11. Rc1 {[%emt 0:02:43]} Re8 {[%emt 0:12:39]} 12. Qe2 {[%emt 0:10:46]} a6 {[%emt 0:05:41]} 13. Rfd1 {[%emt 0:03:48]} b5 {[%emt 0:07:33]} 14. dxc5 {[%emt 0:03:36]} Nxc5 {[%emt 0:00:11]} 15. Bf5 {[%emt 0:08:59]} Qa5 {[%emt 0:09:38]} 16. Rc2 {[%emt 0:05:50]} Rad8 {[%emt 0:08:34]} 17. Nb1 {[%emt 0:07:58]} Nce4 {[%emt 0:05:52]} 18. Rdc1 {[%emt 0:05:37]} Nd6 {[%emt 0:07:27]} 19. Bd3 {[%emt 0:06:24]} Rc8 {[%emt 0:01:12]} 20. Nc3 {[%emt 0:03:16]} Nfe4 {[%emt 0:10:21]} 21. Nd4 {[%emt 0:07:22]} Bf6 {[%emt 0:04:06]} 22. Qg4 {[%emt 0:01:37]} Nxc3 {[%emt 0:07:22]} 23. Bxc3 {[%emt 0:01:52]} b4 {[%emt 0:00:40]} 24. Ba1 {[%emt 0:01:36]} Rxc2 {[%emt 0:00:40]} 25. Rxc2 {[%emt 0:00:03]} Qd8 {[%emt 0:04:30]} 26. g3 {[%emt 0:00:55]} Ne4 {[%emt 0:00:57]} 27. Qd1 {[%emt 0:02:38]} Qd7 {[%emt 0:02:30]} 28. Qf1 {[%emt 0:00:43]} Rc8 {[%emt 0:03:06]} 29. Bxa6 {[%emt 0:04:30]} Rxc2 {[%emt 0:00:05]} 30. Nxc2 {[%emt 0:00:13]} Bc3 {[%emt 0:01:32]} 31. Bd3 {[%emt 0:04:14]} Nd2 {[%emt 0:00:35]} 32. Qe2 {[%emt 0:00:24]} d4 {[%emt 0:00:50]} 33. e4 {[%emt 0:00:02]} Qh3 {[%emt 0:00:38]} 34. Bxc3 {[%emt 0:01:16]} dxc3 {[%emt 0:00:22]} 35. Nxb4 {[%emt 0:00:17]} f5 {[%emt 0:00:00]} 1-0

[Event "Lichtenrader Herbst 2019"]
[Site "Berlin"]
[Date "2019.10.14"]
[Round "3.8"]
[White "Katzir, Moshe"]
[Black "Rosmait, Emily"]
[Result "1-0"]
[ECO "C26"]
[WhiteElo "2125"]
[BlackElo "1908"]
[Annotator "NA"]
[PlyCount "77"]
[EventDate "2019.10.12"]
[EventType "swiss"]
[EventCountry "GER"]
[SourceTitle "playchess.com"]
[Source "ChessBase"]
[SourceQuality "1"]
[TimeControl "40/5400+30:1800+30"]

1. e4 {[%emt 0:00:00]} e5 {[%emt 0:00:00]} 2. Nc3 {[%emt 0:00:00]} Nf6 {[%emt 0:00:00]} 3. g3 {[%emt 0:00:09]} Bc5 {[%emt 0:00:45]} 4. Bg2 {[%emt 0:00:44]} O-O {[%emt 0:00:58]} 5. Nge2 {[%emt 0:01:57]} c6 {[%emt 0:01:43]} 6. O-O {[%emt 0:08:56]} d6 {[%emt 0:01:06]} 7. h3 {[%emt 0:02:15]} Bb6 {[%emt 0:05:28]} 8. d4 {[%emt 0:04:43]} Qe7 {[%emt 0:11:23]} 9. Re1 {[%emt 0:03:58]} Re8 {[%emt 0:03:41]} 10. Kh2 {[%emt 0:00:24]} Nbd7 {[%emt 0:02:34]} 11. f4 {[%emt 0:04:17]} exf4 {[%emt 0:13:46]} 12. Nxf4 {[%emt 0:03:53]} Nf8 {[%emt 0:02:27]} 13. a4 {[%emt 0:17:49]} a5 {[%emt 0:01:53]} 14. Be3 {[%emt 0:05:10]} Bc7 {[%emt 0:10:37]} 15. Qf3 {[%emt 0:09:22]} Bd7 {[%emt 0:04:57]} 16. Rad1 {[%emt 0:02:25]} h6 {[%emt 0:04:34]} 17. Bc1 {[%emt 0:02:15]} N8h7 {[%emt 0:01:36]} 18. e5 {[%emt 0:05:52]} dxe5 {[%emt 0:08:24]} 19. dxe5 {[%emt 0:00:01]} Ng5 {[%emt 0:00:27]} 20. Qf1 {[%emt 0:07:39]} Nfh7 {[%emt 0:05:24]} 21. Nd3 {[%emt 0:05:02]} Rad8 {[%emt 0:01:05]} 22. Be3 {[%emt 0:00:21]} Ne6 {[%emt 0:02:20]} 23. Ne4 {[%emt 0:00:11]} Bc8 {[%emt 0:01:05]} 24. Qf2 {[%emt 0:01:27]} Nhg5 {[%emt 0:01:51]} 25. Rf1 {[%emt 0:03:20]} Nxe4 {[%emt 0:02:08]} 26. Bxe4 {[%emt 0:00:05]} Ng5 {[%emt 0:01:41]} 27. Bxg5 {[%emt 0:00:45]} hxg5 {[%emt 0:00:08]} 28. Rde1 {[%emt 0:00:34]} Qd7 {[%emt 0:04:13]} 29. e6 {[%emt 0:02:53]} fxe6 {[%emt 0:02:59]} 30. Qf3 {[%emt 0:00:06]} g6 {[%emt 0:03:45]} 31. Bxg6 {[%emt 0:00:47]} Re7 {[%emt 0:00:37]} 32. Qh5 {[%emt 0:01:27]} e5 {[%emt 0:00:17]} 33. Rf5 {[%emt 0:01:53]} e4 {[%emt 0:01:40]} 34. Ref1 {[%emt 0:00:33]} Rg7 {[%emt 0:00:26]} 35. Rf8+ {[%emt 0:02:50]} Rxf8 {[%emt 0:00:24]} 36. Rxf8+ {[%emt 0:00:01]} Kxf8 {[%emt 0:00:14]} 37. Qh8+ {[%emt 0:00:10]} Ke7 {[%emt 0:01:00]} 38. Qxg7+ {[%emt 0:00:09]} Ke6 {[%emt 0:00:43]} 39. Nc5+ {[%emt 0:00:09]} 1-0